Cogmind - Beta 12 @@@ ROGUE MODE // 2023.05.28 @ 21:55:34 Player: Mr Goldstein Result: Self-destructed Performance ------------- Evolutions (3) 1500 Regions Visited (5) 1000 Robots Destroyed (0) 0 Value Destroyed (0) 0 Prototype IDs (2) 40 Alien Tech Used (0) 0 Bonus (834) 834 TOTAL SCORE: 3374 Bonus ------- Pacifist 834 Cogmind --------- Core Integrity 110/700 Matter 225/300 Energy 99/100 System Corruption 2% Temperature Hot (208) Movement Core (50) Location -7/Factory Parts ------- > --- POWER (1) -------- (None) > --- PROPULSION (5) --- (None) > --- UTILITY (5) ------ (None) > --- WEAPON (2) ------- (None) > --- INVENTORY (5) ---- Cesium-ion Thruster Cesium-ion Thruster Cesium-ion Thruster Xenon Bombardment Thruster Xenon Bombardment Thruster Peak State ------------ > --- POWER ------------ Enhanced Nuclear Core > --- PROPULSION ------- Cesium-ion Thruster Cesium-ion Thruster Cesium-ion Thruster Xenon Bombardment Thruster Xenon Bombardment Thruster > --- UTILITY ---------- Core Shielding > --- WEAPON ----------- (None) > --- INVENTORY -------- Cesium-ion Thruster Cesium-ion Thruster Xenon Bombardment Thruster [Rating: 24] Favorites ----------- Power Enhanced Nuclear Core Power Core Enhanced Nuclear Core Propulsion Flight Unit Flight Unit Flight Unit Utility Core Shielding Protection Core Shielding Weapon Great Axe Ballistic Gun Improved Assault Rifle Slashing Weapon Great Axe Build | -11 -10 -9 -9 -8 -7 ------- Run | Jun Mat Mat Min Mat Fac Slots Evolved 6 | . . 2 . 2 2 Power . | . . . . . . Propulsion 3 | . . 1 . 1 1 Utility 3 | . . 1 . 1 1 Weapon . | . . . . . . Parts Attached 15 | . . 4 2 2 7 Power 2 | . . 1 . . 1 Engine . | . . . . . . Core 2 | . . 1 . . 1 Reactor . | . . . . . . Propulsion 9 | . . 3 . 1 5 Treads . | . . . . . . Leg . | . . . . . . Wheel . | . . . . . . Hover . | . . . . . . Flight 9 | . . 3 . 1 5 Utility 2 | . . . 2 . . Device . | . . . . . . Storage . | . . . . . . Processor . | . . . . . . Hackware . | . . . . . . Protection 2 | . . . 2 . . Artifact . | . . . . . . Weapon 2 | . . . . 1 1 Energy Gun . | . . . . . . Energy Cannon . | . . . . . . Ballistic Gun 1 | . . . . 1 . Ballistic Cannon . | . . . . . . Launcher . | . . . . . . Special Weapon . | . . . . . . Impact Weapon . | . . . . . . Slashing Weapon 1 | . . . . . 1 Piercing Weapon . | . . . . . . Special Melee Weapon . | . . . . . . Unidentified Prototypes 2 | . . . . 1 1 Parts Lost 8 | . . . 2 2 4 Power . | . . . . . . Propulsion 7 | . . . 2 2 3 Utility 1 | . . . . . 1 Weapon . | . . . . . . Highest Loss Streak 4 | . . . 2 2 4 To Critical Strikes . | . . . . . . Average Slot Usage (%) 21 | . . 30 24 21 25 Core 2 | . . 5 2 . 4 Flight 13 | . . 24 13 12 15 Protection 4 | . . . 8 9 4 Naked Turns 84 | . 50 11 . . 23 Heaviest Build 12 | . . 7 7 1 12 Greatest Support 27 | 3 3 12 12 8 27 Greatest Overweight (x) 2 | . . . . . 2 Average Overweight (x) . | . . . . . . Largest Inventory Capacity 5 | 5 5 5 5 5 5 Average Capacity 5 | 5 5 5 5 5 5 Most Carried 5 | . 4 5 5 5 5 Average Carried 3 | . 1 4 5 4 4 Final Capacity 5 | 5 5 5 5 5 5 Final Carried 5 | . 4 5 5 5 5 Class Distribution -------------------- 77% | Mutant 22% | Sprinter Dominant Class ---------------- Mutant | -10/Materials Mutant | -9/Materials Mutant | -9/Mines Mutant | -8/Materials Sprinter | -7/Factory Resources | -11 -10 -9 -9 -8 -7 ----------- Run | Jun Mat Mat Min Mat Fac Matter Collected 235 | 144 36 . 55 . . Remotely . | . . . . . . Salvage Created . | . . . . . . Parts . | . . . . . . Haulers Intercepted . | . . . . . . Recyclers Shooed . | . . . . . . Parts Field Recycled . | . . . . . . Retrieved Matter . | . . . . . . Parts Self-Destructed . | . . . . . . Prevented . | . . . . . . Kills | -11 -10 -9 -9 -8 -7 ------- Run | Jun Mat Mat Min Mat Fac Combat Hostiles Destroyed . | . . . . . . Classes Destroyed . | . . . . . . Best Kill Streak . | . . . . . . Combat Bots Only . | . . . . . . Max Kills in Single Turn . | . . . . . . Gunslinging . | . . . . . . Exploded . | . . . . . . Melee . | . . . . . . Uniques/NPCs Destroyed . | . . . . . . Combat | -11 -10 -9 -9 -8 -7 -------- Run | Jun Mat Mat Min Mat Fac Damage Taken 1395 | . 218 61 134 220 762 Core 1059 | . 218 34 81 136 590 Absorbed by Shields . | . . . . . . Redirected to Shielding 40 | . . . 8 29 3 Core Remaining (%) 64 | 100 12 . 71 75 . Volleys Fired . | . . . . . . Largest . | . . . . . . Hottest . | . . . . . . Shots Fired . | . . . . . . Gun . | . . . . . . Cannon . | . . . . . . Launcher . | . . . . . . Special . | . . . . . . Kinetic . | . . . . . . Thermal . | . . . . . . Explosive . | . . . . . . Electromagnetic . | . . . . . . Robot Hit Streak . | . . . . . . Robot Miss Streak . | . . . . . . Penetration Max . | . . . . . . Secondary Targets . | . . . . . . Shots Hit Robots . | . . . . . . Core Hits . | . . . . . . Critical Kills . | . . . . . . Critical Parts Destroyed . | . . . . . . Critical Strikes . | . . . . . . Melee Attacks 3 | . . . . . 3 Impact . | . . . . . . Slashing 3 | . . . . . 3 Piercing . | . . . . . . Sneak Attacks . | . . . . . . Combat Hostiles . | . . . . . . Follow-up Attacks . | . . . . . . Damage Inflicted 3 | . . 3 . . . Guns . | . . . . . . Cannons . | . . . . . . Explosions . | . . . . . . Melee . | . . . . . . Ramming 3 | . . 3 . . . Kinetic . | . . . . . . Thermal . | . . . . . . Explosive . | . . . . . . Electromagnetic . | . . . . . . Impact . | . . . . . . Slashing . | . . . . . . Piercing . | . . . . . . Highest Corruption 2 | . 1 . . . 2 Average Corruption 1 | . 1 . . . 2 Corruption Purged . | . . . . . . Corruption Blocked . | . . . . . . Effects 1 | . . . . . 1 Heat Flow Errors 1 | . . . . . 1 Overload Shots . | . . . . . . Overflow Damage . | . . . . . . Projectiles . | . . . . . . Explosions . | . . . . . . Melee . | . . . . . . Knockbacks . | . . . . . . Impact . | . . . . . . Kinetic . | . . . . . . Secondary . | . . . . . . Self-Inflicted Damage 1 | . . 1 . . . Shots . | . . . . . . Rammed 1 | . . 1 . . . Targets Rammed 1 | . . 1 . . . Kicked . | . . . . . . Crushed . | . . . . . . Highest Temperature 224 | . . . . . 224 Average Temperature 23 | . . . . . 23 Received Heat Transfer 402 | . 24 36 54 126 162 Siege Activations . | . . . . . . Robots Corrupted . | . . . . . . Combat Hostiles . | . . . . . . Parts Fried . | . . . . . . Impact Corruptions . | . . . . . . Robots Melted . | . . . . . . Combat Hostiles . | . . . . . . Parts Melted . | . . . . . . Heat Transferred . | . . . . . . Parts Sabotaged . | . . . . . . Parts Stolen . | . . . . . . Parts Stripped . | . . . . . . Power Chain Reactions . | . . . . . . Missiles Intercepted . | . . . . . . Alert | -11 -10 -9 -9 -8 -7 ------- Run | Jun Mat Mat Min Mat Fac Peak Influence 311 | . 90 67 25 81 311 Initial 37 | . . 37 25 1 32 Average 72 | . 49 49 8 34 140 Maximum Alert Level 1 | . . . . . 1 Low Security (%) 85 | 100 100 100 100 100 60 Level 1 14 | . . . . . 39 Level 2 . | . . . . . . Level 3 . | . . . . . . Level 4 . | . . . . . . Level 5 . | . . . . . . High Security . | . . . . . . Max Security . | . . . . . . Squads Dispatched 12 | . 2 2 . 3 5 Investigation 7 | . 1 1 . . 5 Extermination . | . . . . . . Reinforcement 5 | . 1 1 . 3 . Assault . | . . . . . . Garrison . | . . . . . . Intercept . | . . . . . . Searches Triggered . | . . . . . . Construction Impeded . | . . . . . . Haulers Reinforced . | . . . . . . Active Scanning Responses . | . . . . . . Cargo Convoy Interrupts . | . . . . . . Stealth | -11 -10 -9 -9 -8 -7 --------- Run | Jun Mat Mat Min Mat Fac Distress Signals 4 | . 1 1 . 1 1 Communications Jammed . | . . . . . . Distress Signals . | . . . . . . Times Spotted 59 | . 10 7 6 18 18 Peak Tracking Total 13 | . 7 6 5 10 13 Tactical Retreats 5 | . 2 . . 1 2 Traps | -11 -10 -9 -9 -8 -7 ------- Run | Jun Mat Mat Min Mat Fac Traps Triggered 2 | . 1 . . . 1 Indirectly . | . . . . . . Trap Hack Attempts . | . . . . . . Triggered . | . . . . . . Disarmed . | . . . . . . Reprogrammed . | . . . . . . Reused . | . . . . . . Traps Extracted . | . . . . . . Installed . | . . . . . . Triggered . | . . . . . . Machines | -11 -10 -9 -9 -8 -7 ---------- Run | Jun Mat Mat Min Mat Fac Machines Disabled . | . . . . . . Max in Single Turn . | . . . . . . Garrison Access 1 | . . . . . 1 Machines Repaired . | . . . . . . Machines Sabotaged . | . . . . . . Overloaded Fab Kills . | . . . . . . Hacking | -11 -10 -9 -9 -8 -7 --------- Run | Jun Mat Mat Min Mat Fac Machines Accessed 8 | . 1 1 . . 6 Terminals 5 | . . . . . 5 Fabricators . | . . . . . . Repair Stations . | . . . . . . Recycling Units 2 | . 1 1 . . . Scanalyzers . | . . . . . . Garrison Access 1 | . . . . . 1 Total Hacks 14 | . 1 1 . . 12 Successful 5 | . 1 1 . . 3 Failed 9 | . . . . . 9 Catastrophic 3 | . . . . . 3 Database Lockouts . | . . . . . . Manual 11 | . 1 1 . . 9 Terminals 11 | . . . . . 11 Fabricators . | . . . . . . Repair Stations . | . . . . . . Recycling Units 2 | . 1 1 . . . Scanalyzers . | . . . . . . Garrison Access 1 | . . . . . 1 Terminal Hacks . | . . . . . . Fabricator Hacks . | . . . . . . Repair Station Hacks . | . . . . . . Recycling Unit Hacks . | . . . . . . Scanalyzer . | . . . . . . Garrison Access Hacks . | . . . . . . Unauthorized Hacks 5 | . 1 1 . . 3 Terminals 2 | . . . . . 2 Botnet 1 | . . . . . 1 Disrupt 1 | . . . . . 1 Fabricators . | . . . . . . Repair Stations . | . . . . . . Recycling Units 2 | . 1 1 . . . Tunnel 2 | . 1 1 . . . Scanalyzers . | . . . . . . Garrison Access 1 | . . . . . 1 Jam 1 | . . . . . 1 Data Cores Recovered . | . . . . . . Used . | . . . . . . Hacking Detections 4 | . . . . . 4 Full Trace Events 4 | . . . . . 4 Feedback Events . | . . . . . . Feedback Blocked . | . . . . . . Robot Schematics Acquired . | . . . . . . Robots Built . | . . . . . . Authchips . | . . . . . . Time . | . . . . . . Total Robot Build Rating . | . . . . . . Part Schematics Acquired . | . . . . . . Parts Built . | . . . . . . Authchips . | . . . . . . Time . | . . . . . . Total Part Build Rating . | . . . . . . Parts Repaired . | . . . . . . Time . | . . . . . . Parts Recycled . | . . . . . . Recycled Matter . | . . . . . . Retrieved Matter . | . . . . . . Retrieved Components . | . . . . . . Parts Scanalyzed . | . . . . . . Part Schematics Acquired . | . . . . . . Parts Damaged . | . . . . . . Bothacking | -11 -10 -9 -9 -8 -7 ------------ Run | Jun Mat Mat Min Mat Fac Used RIF Installer . | . . . . . . Robots Hacked . | . . . . . . Non-combat . | . . . . . . Combat . | . . . . . . Robot Hacks Applied . | . . . . . . Relay Couplers Released . | . . . . . . Fabnet Peak Effective % . | . . . . . . Robots Rewired . | . . . . . . Allies Hacked . | . . . . . . Hacks Repelled . | . . . . . . Allies | -11 -10 -9 -9 -8 -7 -------- Run | Jun Mat Mat Min Mat Fac Total Allies . | . . . . . . Largest Group . | . . . . . . Highest-Rated Group . | . . . . . . Highest-Rated Ally . | . . . . . . Total Orders . | . . . . . . Ally Attacks . | . . . . . . Total Damage . | . . . . . . Kills . | . . . . . . Allies Corrupted . | . . . . . . Allies Melted . | . . . . . . Intel | -11 -10 -9 -9 -8 -7 ------- Run | Jun Mat Mat Min Mat Fac Robot Analysis Total . | . . . . . . Derelict Logs Recovered . | . . . . . . Drone Launches . | . . . . . . Drone Recoveries . | . . . . . . Exploration | -11 -10 -9 -9 -8 -7 ------------- Run | Jun Mat Mat Min Mat Fac Turns Passed 336 | 13 50 37 39 75 122 Spaces Moved 731 | 26 91 75 90 179 270 Core 233 | 26 91 15 . 17 84 Treads . | . . . . . . Legs . | . . . . . . Wheels . | . . . . . . Hover . | . . . . . . Flight 498 | . . 60 90 162 186 Fastest Speed 25 | 50 50 34 34 37 25 Average Speed 40 | 50 50 37 38 39 37 Slowest Speed 150 | 50 50 50 40 50 150 Overloaded Moves . | . . . . . . Propulsion Burnouts . | . . . . . . Robots Hopped 12 | . . . 1 7 4 Cave-ins Triggered . | . . . . . . Exploration Rate (%) 19 | 4 19 14 39 32 10 Regions Visited 5 Branch Regions 1 Pre-discovered Areas 2 | . 1 1 . . . Known Exits Taken . | . . . . . . Unknown Exits Taken 5 | 1 1 1 1 1 . Scrap Searched 2 | . . . 2 . . Spaces Dug . | . . . . . . Terrain Destroyed . | . . . . . . Melee . | . . . . . . Projectile . | . . . . . . AOE . | . . . . . . Terrain Rammed . | . . . . . . Walls Destroyed . | . . . . . . Machines Disabled . | . . . . . . Actions | -11 -10 -9 -9 -8 -7 --------- Run | Jun Mat Mat Min Mat Fac Total 753 | 25 94 86 92 175 281 Wait . | . . . . . . Move 703 | 25 90 75 87 164 262 Hop 12 | . . . 1 7 4 Pick Up 10 | . 4 4 . 1 1 Fast Attach 11 | . . 4 2 1 4 Attach 4 | . . . . 1 3 Detach 2 | . . . . . 2 Swap . | . . . . . . Drop 8 | . . 3 2 1 2 Fire . | . . . . . . Melee 3 | . . . . . 3 Ram . | . . . . . . Kick . | . . . . . . Crush . | . . . . . . Escape Stasis . | . . . . . . Rewire . | . . . . . . Trap . | . . . . . . Miscellaneous . | . . . . . . Route ------- -11/Junkyard -10/Materials -9/Materials -9/Mines (discovered 2 exits: [*Mat x2]) -8/Materials -7/Factory History --------- Turn | Location | Event 2 | -11/Junkyard | Met Revision 17 4 | -11/Junkyard | Discovered new exit (range 16) 14 | -11/Junkyard | Entered Materials 46 | -10/Materials | Discovered new exit (range 16) 54 | -10/Materials | Core integrity fell below 50% 62 | -10/Materials | Core integrity fell below 20% 64 | -10/Materials | Entered another Materials area 64 | -9/Materials | Evolved 2 slots: Propulsion x1, Utility x1 97 | -9/Materials | Discovered new exit (range 12) 101 | -9/Materials | Entered Mines 109 | -9/Mines | Discovered new exit (range 4) 128 | -9/Mines | Discovered new exit (range 8) 140 | -9/Mines | Entered Materials 140 | -8/Materials | Evolved 2 slots: Propulsion x1, Utility x1 207 | -8/Materials | Discovered new exit (range 15) 215 | -8/Materials | Entered Factory 215 | -7/Factory | Evolved 2 slots: Propulsion x1, Utility x1 323 | -7/Factory | Core integrity fell below 50% 335 | -7/Factory | Lost 4 parts (3n1u) 337 | -7/Factory | Self-destructed Last Messages --------------- Testing... Disruption routine running. 00301_ ALERT: Suspicious activity at Terminal F004. Dispatching Investigation squad. 00303_ Dropped Enh. Nuclear Core. 00304_ Xenon Bombardment Thruster destroyed. 00309_ Slug penetrates Wall. 00314_ Dropped Great Axe. 00318_ Triggered Shock Trap. 00318_ The floor emits a surge of raw power. 00318_ System corrupted (+2). 00319_ Penetrated by Slug. 00322_ Slug penetrates Wall. 00327_ Critical hit (Burn: +37). 00328_ Slug penetrates Door. 00331_ Penetrated by Slug. 00335_ System corrupted: Heat flow error (+258). 00337_ Connecting with Terminal... 00337_ ALERT: Suspicious activity at Terminal F014. Dispatching Investigation squad. Map ----- +----------------------------------------------------+ | ?????????????????????????????????????????????????? | | ?????????????????????????????????????????????????? | | ?????????????????????????????????????????????????? | | ?????????????????????????????????????????????????? | | ?????????????????????????????????????????????????? | | ?????????????????????????????????????????????????? | | ?????????????????????????????????????????????????? | | ?????????????????????????????????????????????????? | | ?????????????????????????????????????????????????? | | ?????????????????????????????????????????????????? | | ?????????????????????????? ??????????????????????? | | ??????????????????????#### ###???????????????????? | | ??????????????????????# ????????????????? | | ??????????????????????# ??????????????? | | ??????????????????????# ???????????????? | | ??????????????????????# ????????????????? | | ??????????????????????# ????????????????? | | ??????????????????????# ?????????????????? | | ??????????????????????# ??????????????????? | | ??????????????????????# g #??????????????????? | | ?????????????????????## g ##?????????????????? | | ?????????????????????# #?????????????????? | | ???????????+########## k g #?????????????????? | | ?????????? k #?????????????????? | | ???? ? #?????????????????? | | ?? ? @T +?????????????????? | | " ? a #?????????????????? | | ? ! #?????????????????? | | #??+########## #?????????????????? | | " #????????????# #?????????????????? | | " #????????????### ###?????????????????? | | #??????????????# #???????????????????? | | #??????????????# ############????????? | | " #??????????????# # ] ???????? | | " #??????????????# # ????????? | | #??????????????# # !! "" ??????????? | | #??????????????# # !! "????????????? | | " #??????????????# # ??????????????? | | " #??????????????# s###"####????????????? | | ################ g #????????????? | | #????????????? | | ###### ########### #????????????? | | ##+#########+#####?????# #??####??????? | | #?????# #? ??????? | | """"""""" #??########### #?"""" ??????? | | #??# # # """" ??????? | | """"""""" #??# = # # """" !?????? | | #??#! * + + """" !?????? | | """"""""" #??# # # """" ?????? | | #??# # # """" ??????? | +----------------------------------------------------+ Best States ------------- Heat Dissipation 34 Energy Generation 17 Energy Capacity 300 Matter Stores 300 Matter Capacity 300 Sight Range 16 Terrain Scan Density 10 Core Shielding 20 Evasion (%) 65 Item Schematics ----------------- None Robot Schematics ------------------ None Fabricated ------------ Nothing Alien Tech Used ----------------- None Achievements -------------- None Challenges ------------ None Game ------ Seed FieldChipClaws Manual? 0 Play Time 00:07:50 Cumulative 247.0 hours Start 2023.05.28 @ 21:50:05 End 2023.05.28 @ 21:55:34 Sessions 1 Manual Loads 0 Difficulty Rogue Special Mode None Game No. 738 Rogue 738 Adventurer 0 Explorer 0 Win Type - Total 12 Types 8/0/2/2/0/0/0/0/0 Lore% 87 Gallery% 83 Achievement% 74 Wizard Run 0 Options --------- ASCII 0 Keyboard 0 Movement Numpad Keybinds 0 Fullscreen 1 Font 16/SmallcapsGlow Map View 75x55 Tactical HUD 1 Map Filters NONE Filters NONE Steam 1 RUN: 7464fa00-c728-4d25-94ff-1f966b2b6299